Cogmind - Beta 16.1 @@@ ROGUE MODE // 2026.02.25 @ 05:53:47 Player: Rocket Result: Destroyed by S-43 Plague with Heavy Machine Gun Performance ------------- Evolutions (7) 3500 Regions Visited (23) 4600 Robots Destroyed (245) 1225 Value Destroyed (9690) 9690 Prototype IDs (19) 380 Alien Tech Used (0) 0 Bonus (3926) 3926 TOTAL SCORE: 23321 Bonus ------- High Alert Combat Kills 152 Follower Combat Kills 3715 Entered Garrisons 200 Network Hubs Disabled 200 Met Imprinter 300 Was Imprinted 300 Built Enhanced Grunts 300 A7 Reached Mainframe 300 Met R17 at Cetus 500 Friendly Fire -2041 Cogmind --------- Core Integrity 0/1300 Matter 191/300 Energy 180/180 System Corruption 69% Temperature Cool (0) Movement Walking (120) Location -3/Research Parts ------- > --- POWER (1) -------- Light Particle Reactor > --- PROPULSION (8) --- Myomer Leg Myomer Leg Gyrokinetic Inverter > --- UTILITY (10) ----- Advanced Sensor Array Advanced Signal Interpreter Improved Terrain Scanner Improved Targeting Computer Centrium Medium Armor Plating Experimental Hacking Suite > --- WEAPON (2) ------- Force Lance Force Lance (fused) > --- INVENTORY (5) ---- Light Antimatter Reactor Improved Sensor Array Phase Gun Nova Cannon Plasma Cutter Peak State ------------ > --- POWER ------------ Quantum Reactor > --- PROPULSION ------- Centrium Heavy Treads Centrium Heavy Treads Centrium Heavy Treads Centrium Heavy Treads > --- UTILITY ---------- Huge Storage Unit Advanced Signal Interpreter 0b10 Decoder Chip [Scout] Launcher Guidance Computer Centrium Medium Armor Plating Centrium Medium Armor Plating > --- WEAPON ----------- Advanced Plasma Cannon Phasing Sabre > --- INVENTORY -------- Zionite Light DM Reactor Carbon-fiber Leg Cargo Storage Unit Medium Matter Pod Medium Matter Pod High-capacity Matter Pod Advanced Signal Interpreter Zionite Light Carapace Layered Light Armor Plating Layered Medium Armor Plating Centrium Medium Armor Plating EM Disruption Field Mobile Refinery Mk. CCLXVII Improved Field Recycling Unit Minigun Antimatter Cannon Proton Missile Launcher Heavy Rocket Launcher Rocket Array Remote Datajack Remote Datajack Plasma Cutter [Rating: 135] Favorites ----------- Power Ion Engine Engine Ion Engine Power Core Light Nuclear Core Reactor Zionite Light DM Reactor Propulsion Light Treads Treads Light Treads Leg Carbon-fiber Leg Wheel Compact Wheel Hover Unit Improved Antigrav System Flight Unit Electron Diverter Utility Huge Storage Unit Device Structural Scanner Storage Huge Storage Unit Processor Launcher Guidance Computer Hackware Hacking Suite Protection Centrium Medium Armor Plating Weapon Katana Energy Gun Particle Gun Energy Cannon Improved EM Pulse Cannon Ballistic Gun Heavy Assault Rifle Ballistic Cannon Antimatter Cannon Launcher Rocket Array Special Weapon Remote Datajack Slashing Weapon Katana Piercing Weapon Lance Build | -11 -10 -10 -9 -9 -8 -7 -7 -7 -7 -6 -6 -6 -6 -6 -6 -5 -5 -5 -4 -4 -3 -3 -3 ------- Run | Yrd Mat Min Mat Min Mat Fac Low Low Zio Pro Fac Ext Cet Arc Hub Fac Upp Upp Fac Arm Res Gar Res Slots Evolved 14 | . . . 2 . 2 2 . . . . 2 . . . . 2 . . 2 . 2 . . Power . | . . . . . . . . . . . . . . . . . . . . . . . . Propulsion 6 | . . . 2 . 1 1 . . . . 1 . . . . 1 . . . . . . . Utility 8 | . . . . . 1 1 . . . . 1 . . . . 1 . . 2 . 2 . . Weapon . | . . . . . . . . . . . . . . . . . . . . . . . . Parts Attached 324 | 6 17 . 21 1 21 42 2 8 10 7 7 23 7 2 7 8 1 1 22 13 52 24 22 Power 32 | 1 2 . 4 . 2 3 . . . 1 . 3 1 . 2 . . . 2 2 6 3 . Engine 11 | 1 2 . 4 . 1 1 . . . . . 2 . . . . . . . . . . . Core 6 | . . . . . 1 2 . . . 1 . 1 . . . . . . . 1 . . . Reactor 15 | . . . . . . . . . . . . . 1 . 2 . . . 2 1 6 3 . Propulsion 113 | 2 5 . 8 1 10 20 . 2 1 4 1 18 4 2 . . . . 9 . 14 8 4 Treads 40 | . 2 . 3 1 10 6 . 2 1 4 . . 4 2 . . . . . . 3 2 . Leg 39 | . . . 4 . . 2 . . . . . 18 . . . . . . 7 . 4 1 3 Wheel 22 | 2 3 . 1 . . 12 . . . . 1 . . . . . . . 2 . 1 . . Hover 6 | . . . . . . . . . . . . . . . . . . . . . 5 . 1 Flight 6 | . . . . . . . . . . . . . . . . . . . . . 1 5 . Utility 97 | 1 4 . 2 . 5 9 1 4 3 1 3 2 . . 3 6 1 1 6 4 22 7 12 Device 41 | . 1 . 2 . . 4 1 1 1 . 1 1 . . . 5 . 1 3 3 8 4 5 Storage 8 | 1 2 . . . . . . 1 . . . . . . . . . . . . 2 1 1 Processor 18 | . . . . . 2 1 . . . 1 2 . . . . 1 . . 2 . 6 1 2 Hackware 6 | . . . . . . 2 . . . . . . . . . . . . . . 2 . 2 Protection 24 | . 1 . . . 3 2 . 2 2 . . 1 . . 3 . 1 . 1 1 4 1 2 Artifact . | . . . . . . . . . . . . . . . . . . . . . . . . Weapon 82 | 2 6 . 7 . 4 10 1 2 6 1 3 . 2 . 2 2 . . 5 7 10 6 6 Energy Gun 20 | 2 3 . 3 . 1 1 . . . . . . . . . . . . . 2 6 1 1 Energy Cannon 17 | . 1 . 1 . 1 2 . . 2 . 2 . . . . 1 . . 2 2 2 . 1 Ballistic Gun 8 | . 1 . 1 . . . 1 . . . . . . . 2 . . . . 1 . 1 1 Ballistic Cannon 8 | . . . 2 . . 1 . . . . 1 . . . . 1 . . 1 2 . . . Launcher 12 | . . . . . . 4 . 1 4 . . . . . . . . . . . . 3 . Special Weapon 7 | . . . . . 1 1 . . . 1 . . 1 . . . . . . . 2 . 1 Impact Weapon . | . . . . . . . . . . . . . . . . . . . . . . . . Slashing Weapon 7 | . 1 . . . 1 1 . 1 . . . . 1 . . . . . 1 . . 1 . Piercing Weapon 3 | . . . . . . . . . . . . . . . . . . . 1 . . . 2 Special Melee Weapon . | . . . . . . . . . . . . . . . . . . . . . . . . Unidentified Prototypes 19 | . . . . . 1 1 . . 3 . 2 . 1 . 3 . . . 1 . 4 . 3 Corrupted Parts 17 | . 1 . . . 1 1 . . . 1 . 3 5 . . . . . . . 4 1 . System Corruption 75 | . 1 . . . 1 6 . . . 5 . 8 33 . . . . . . . 17 4 . Parts Lost 156 | . 4 . 10 . 2 18 9 4 . . 7 11 2 . 2 2 . 1 16 13 10 35 10 Power 20 | . . . 3 . . 2 1 1 . . . 2 . . 1 . . . 2 1 3 3 1 Propulsion 67 | . 2 . 5 . . 10 6 . . . 4 8 2 . . . . . 8 4 1 15 2 Utility 38 | . . . . . . 2 1 2 . . 1 . . . 1 1 . . 3 5 5 12 5 Weapon 31 | . 2 . 2 . 2 4 1 1 . . 2 1 . . . 1 . 1 3 3 1 5 2 Highest Loss Streak 14 | . 2 . 5 . 1 5 8 4 . . 6 7 2 . 1 1 . 1 4 9 4 14 7 To Critical Strikes 3 | . . . . . . . . . . . 1 1 1 . . . . . . . . . . Average Backups 20 | 3 13 16 17 21 24 23 20 20 23 23 23 21 23 23 22 22 23 22 20 22 10 12 3 Power 1 | . 1 1 . 1 1 . 1 . . 1 2 2 1 1 1 1 2 2 1 1 3 2 1 Propulsion 1 | 2 6 5 2 . 3 2 . . . . . 2 2 2 2 . . . . . . 2 . Utility 10 | . 3 6 7 9 10 11 11 11 14 13 11 10 11 13 12 13 14 14 12 8 2 1 . Weapon 5 | . 1 4 5 10 8 7 5 5 6 5 5 4 5 4 4 4 4 3 1 8 2 2 . Tool/Special . | . . . . . . . . . . . . . . . . . . . . . . . . Unused Backups 67 | . 3 . 1 . 13 11 . . 5 . 5 3 3 . 1 5 . . . 11 2 3 1 Power 12 | . . . . . . 2 . . . . 1 2 2 . . . . . . . 1 3 1 Propulsion 7 | . 3 . . . 2 . . . . . . 1 1 . . . . . . . . . . Utility 20 | . . . . . 3 6 . . . . 3 . . . . 4 . . . 4 . . . Weapon 25 | . . . 1 . 8 3 . . 5 . 1 . . . 1 1 . . . 4 1 . . Tool/Special 3 | . . . . . . . . . . . . . . . . . . . . 3 . . . Average Slot Usage (%) 81 | . 94 100 92 100 99 96 58 49 72 94 94 86 81 73 76 75 76 75 77 73 73 70 42 Engine 2 | . 14 14 10 11 . 1 . . . . . 4 4 . . . . . . . . . . Core 1 | . . . . . 8 5 7 . . 5 6 1 . . . . . . . . . . . Reactor 1 | . . . . . . . . . . . . . 1 6 5 5 5 5 4 4 3 3 2 Treads 18 | . 15 . 9 34 45 30 . 2 20 41 39 5 10 24 26 22 23 23 8 . 3 10 . Leg 5 | . . . 1 . . 1 . . . . . 33 24 1 . . . . 12 11 6 9 6 Wheel 5 | . 10 28 26 9 . 12 9 5 6 1 3 1 . . . . . . 2 9 3 . . Device 5 | . 8 . 5 11 . 10 5 3 . . 9 . . . . 5 5 7 6 16 9 10 9 Storage 7 | . 14 14 11 11 9 7 7 8 9 7 6 6 6 6 6 5 5 5 5 4 7 3 . Processor 9 | . . . . . 8 7 7 7 7 9 13 13 13 13 13 16 17 17 19 5 13 11 3 Protection 6 | . 3 14 5 . 8 . 7 9 12 12 2 5 6 6 9 4 4 3 7 9 1 1 3 Energy Gun 2 | . 21 14 11 11 3 . . . . . . . . . . . . . . . 4 3 1 Energy Cannon 2 | . . . . . 4 5 . . 4 2 1 2 . . . 2 . . 1 4 2 . 1 Ballistic Gun 1 | . 3 14 7 11 3 . . . . . . . . . . . . . . . . . . Ballistic Cannon 1 | . . . 2 . . . 3 1 . . 3 1 3 . 2 1 5 5 3 3 . . . Launcher 1 | . . . . . . . . 2 2 6 . 3 4 6 2 . 4 4 . . . 1 . Slashing Weapon 3 | . 1 . . . 4 6 6 5 5 5 6 1 2 6 3 4 . . 1 . . 1 . Peak Build Rating 135 | 6 9 8 16 16 26 37 38 31 38 56 61 64 107 107 114 135 129 128 134 109 134 133 96 Average Rating 58 | 4 8 8 12 15 22 30 25 21 33 51 58 56 85 104 108 128 126 125 114 93 107 91 56 On Entrance 54 | . 6 8 8 16 16 24 37 19 30 37 56 40 64 107 104 114 124 127 128 104 2 133 13 Avg Prop Armor Cover (%) 13 | . . . 3 2 . 17 8 16 18 16 1 18 7 7 7 7 . . 7 3 21 14 17 Naked Turns 41 | . . . . . . . . . . . . . . . . . . . . 25 16 . . Heaviest Build 159 | 13 89 89 98 92 95 101 107 100 105 115 110 127 131 131 135 127 115 120 146 159 66 66 57 Greatest Support 320 | 26 40 20 60 80 102 131 56 48 48 154 154 110 160 183 263 320 320 320 320 38 101 101 50 Greatest Overweight (x) 30 | . 4 4 5 5 . 9 6 30 6 6 6 7 1 . . . . . 4 4 2 1 1 Average Overweight (x) 1 | . 1 4 2 1 . 1 5 5 5 . . 2 . . . . . . 1 2 . . . Largest Inventory Capacity 30 | 8 25 25 25 25 25 25 25 25 25 25 25 25 25 25 25 25 25 25 25 25 15 30 5 Average Capacity 23 | 5 16 25 25 25 25 25 25 25 25 25 25 25 25 25 25 25 25 25 25 24 13 14 5 Most Carried 25 | 6 18 17 21 25 25 25 23 25 25 25 25 25 25 25 25 25 25 25 25 25 15 15 5 Average Carried 21 | 3 13 16 17 21 24 24 21 21 24 24 24 23 24 25 24 24 25 24 21 23 11 13 3 Final Capacity 25 | 8 25 25 25 25 25 25 25 25 25 25 25 25 25 25 25 25 25 25 25 5 15 5 5 Final Carried 25 | 6 15 17 21 25 25 23 22 24 24 25 23 25 25 25 25 25 25 24 22 5 15 5 5 Class Distribution -------------------- 55% | Scavenger-Mutant 22% | Mutant 6% | Scavenger-Assassin 6% | Derelict-Mutant 5% | Commander-Mutant Dominant Class ---------------- Mutant | -10/Materials Mutant | -10/Mines Scavenger-Mutant | -9/Materials Scavenger-Mutant | -9/Mines Scavenger-Mutant | -8/Materials Scavenger-Mutant | -7/Factory Mutant | -7/Lower Caves Mutant | -7/Lower Caves Derelict-Mutant | -7/Zion Scavenger-Mutant | -6/Proximity Caves Scavenger-Assassin | -6/Factory Scavenger-Mutant | -6/Extension Commander-Mutant | -6/Cetus Scavenger-Mutant | -6/Archives Scavenger-Mutant | -6/Hub_04(d) Scavenger-Mutant | -5/Factory Scavenger-Mutant | -5/Upper Caves Scavenger-Mutant | -5/Upper Caves Scavenger-Mutant | -4/Factory Scavenger-Mutant | -4/Armory Scavenger-Mutant | -3/Research Scavenger-Mutant | -3/Garrison Scavenger-Mutant | -3/Research Resources | -11 -10 -10 -9 -9 -8 -7 -7 -7 -7 -6 -6 -6 -6 -6 -6 -5 -5 -5 -4 -4 -3 -3 -3 ----------- Run | Yrd Mat Min Mat Min Mat Fac Low Low Zio Pro Fac Ext Cet Arc Hub Fac Upp Upp Fac Arm Res Gar Res Matter Collected 9466 | 247 344 143 525 237 431 517 142 870 230 365 93 1126 436 93 258 443 188 245 801 363 821 378 170 Remotely . | . . . . . . . . . . . . . . . . . . . . . . . . Salvage Created 9798 | . 529 103 712 102 968 1204 54 385 . 229 274 602 216 . 848 377 10 248 1115 242 819 612 149 Parts 548 | . 35 6 41 11 56 92 7 13 . 13 16 34 10 . 24 19 1 14 57 14 55 23 7 Haulers Intercepted 4 | . 1 . . . 2 . . . . . 1 . . . . . . . . . . . . Recyclers Shooed 11 | . . 1 . . . 10 . . . . . . . . . . . . . . . . . Parts Field Recycled 44 | . . . . . . . 6 11 . . . . . . . . . 7 . 20 . . . Retrieved Matter 597 | . . . . . . . 30 44 . . . . . . . . . 23 . 500 . . . Parts Self-Destructed 48 | . . . . . . . 7 2 . 14 . . . . . . 8 17 . . . . . Prevented 3 | . . . . . . . . . . 1 . . . . . . 2 . . . . . . Parts Restored . | . . . . . . . . . . . . . . . . . . . . . . . . Kills | -11 -10 -10 -9 -9 -8 -7 -7 -7 -7 -6 -6 -6 -6 -6 -6 -5 -5 -5 -4 -4 -3 -3 -3 ------- Run | Yrd Mat Min Mat Min Mat Fac Low Low Zio Pro Fac Ext Cet Arc Hub Fac Upp Upp Fac Arm Res Gar Res Combat Hostiles Destroyed 194 | . 11 2 16 2 17 24 4 4 . 11 4 7 2 . 5 4 2 9 28 10 11 19 2 Melee 36 | . . . . . 3 10 . 1 . 1 4 . . . 2 . . . 13 . . 1 1 Guns 46 | . 8 2 11 2 7 . . . . . . . . . . . . . . . 3 13 . Cannons 50 | . . . 4 . 6 3 1 3 . 1 . 4 . . 1 1 . 3 11 3 6 2 1 AOE 53 | . 3 . 1 . 1 10 3 . . 9 . 3 . . 1 2 2 6 3 7 . 2 . Classes Destroyed 24 | . 6 . 4 . 3 1 . 1 . 2 1 . . . 1 2 . . 1 1 . 1 . Worker 13 | . 2 . 1 . 4 5 . . . . . . . . 1 . . . . . . . . Builder 18 | . 1 . 1 . . 8 . . . . . 4 . . . 3 . . . . 1 . . Tunneler 2 | . . . . . 1 . . . . . 1 . . . . . . . . . . . . Hauler 4 | . 1 . . . 2 . . . . . 1 . . . . . . . . . . . . Recycler 5 | . . . 1 . . 2 . . . . . 1 . . 1 . . . . . . . . Operator 2 | . . . . . 1 . . . . . . . . . . 1 . . . . . . . Watcher 8 | . 1 . 1 . . 1 . . . . . 1 2 . . 2 . . . . . . . Swarmer 48 | . 3 . . . 4 11 4 . . 6 1 . . . . . 2 6 7 . . 3 1 Cutter 4 | . . . . . . . . . . . . . . . . . . . . . . 4 . Saboteur 3 | . . . . . . . . . . . . . . . . . . . . 3 . . . Grunt 60 | . 8 2 12 . 6 7 . . . 3 . 6 . . 2 2 . . 9 2 1 . . Brawler 1 | . . . 1 . . . . . . . . . . . . . . . . . . . . Duelist 2 | . . . 1 . 1 . . . . . . . . . . . . . . . . . . Protector 1 | . . . . . . . . . . 1 . . . . . . . . . . . . . Sentry 24 | . . . 2 2 5 3 . 1 . . . 1 . . 1 . . 1 4 1 1 2 . Demolisher 1 | . . . . . . . . . . . . . . . . 1 . . . . . . . Specialist 4 | . . . . . . . . . . . . . . . . . . . 4 . . . . Hunter 7 | . . . . . 1 1 . . . . 1 . . . . . . 2 . 2 . . . Programmer 18 | . . . . . . 2 . . . 1 . . . . . . . . 4 2 8 1 . Behemoth 2 | . . . . . . . . . . . . . . . . 1 . . . . . . 1 Cetus Guard 2 | . . . . . . . . . . . . . 2 . . . . . . . . . . Lightning 2 | . . . . . . . . . . . . . . . 2 . . . . . . . . Z-Light 6 | . . . . . . . . . . . . . . . 4 1 . . . . 1 . . Samaritan 5 | . . . . . . . . 5 . . . . . . . . . . . . . . . Assembled 11 | . . . . . . . . . . . 2 . . . . . . . . . . 9 . Thug 3 | . . . . . . . . 3 . . . . . . . . . . . . . . . Butcher 1 | . . . . . . . . . . . . 1 . . . . . . . . . . . Guerrilla 2 | . . . . . . . . . . . . . . . 2 . . . . . . . . Mutant 2 | . . . . . . . . . . 2 . . . . . . . . . . . . . Best Kill Streak 12 | . 4 2 4 2 5 12 4 2 . 4 2 6 3 . 4 3 2 9 5 3 3 6 1 Combat Bots Only 9 | . 4 2 3 2 5 4 4 2 . 4 2 6 2 . 2 3 2 9 5 3 3 6 1 Max Kills in Single Turn 7 | . 2 1 2 1 1 2 3 1 . 4 1 4 1 . 7 3 1 4 3 3 1 2 1 Gunslinging 1 | . . . 1 . . . . . . . . . . . . . . . . . . 1 . Exploded 4 | . 2 . 1 . 1 2 3 . . 4 . 2 . . 1 2 1 4 3 3 . 1 . Melee 1 | . . . . . 1 1 . 1 . 1 1 . . . 1 . . . 1 . . 1 1 Uniques/NPCs Destroyed . | . . . . . . . . . . . . . . . . . . . . . . . . Combat | -11 -10 -10 -9 -9 -8 -7 -7 -7 -7 -6 -6 -6 -6 -6 -6 -5 -5 -5 -4 -4 -3 -3 -3 -------- Run | Yrd Mat Min Mat Min Mat Fac Low Low Zio Pro Fac Ext Cet Arc Hub Fac Upp Upp Fac Arm Res Gar Res Hostile Shots Fired 2094 | . 63 8 89 11 75 338 53 52 . 50 111 41 30 . 99 44 15 23 332 99 139 296 126 Missed 624 | . 13 5 23 2 24 117 11 18 . 20 30 13 12 . 20 10 1 6 73 37 40 102 47 Hits 1470 | . 50 3 66 9 51 221 42 34 . 30 81 28 18 . 79 34 14 17 259 62 99 194 79 Melee 21 | . . . . . 1 . . . . . 6 . . . 4 . . . . . . 10 . Projectile 1449 | . 50 3 66 9 50 221 42 34 . 30 75 28 18 . 75 34 14 17 259 62 99 184 79 AOE 12 | . . . . 1 . . . . . . . . . . . 1 . . . 10 . . . Critical Strikes 58 | . 1 . 5 2 2 2 . 3 . 2 1 1 3 . 5 2 . . 9 3 8 7 2 Actively Blocked 2 | . . . 2 . . . . . . . . . . . . . . . . . . . . Part Disruptions 5 | . . . . . . . . . . . 1 . . . . . . . . . 1 3 . Damage Taken 27986 | . 657 40 912 155 742 2619 684 565 . 552 1140 1570 467 14 1733 842 353 285 5093 2088 2448 3527 1500 Core 4012 | . 81 22 202 10 68 332 61 68 . 31 143 259 29 . 114 101 52 . 416 714 292 545 472 Absorbed by Shields 364 | . . . . . . . . . . . . 179 53 . . 132 . . . . . . . Reduced by Siege Mode 298 | . . . . . . . . . . . . . . . . 23 . 8 211 . . 56 . Redirected to Shielding 124 | . . 5 18 . . . . . . . . . . . . . . . . . 101 . . Regen/Repaired (Parts) 735 | . . . . . . . . . 579 . 156 . . . . . . . . . . . . Core Remaining (%) 55 | 100 . 58 . 47 87 . . . . 29 . . . . 35 . . 84 . 1 . . . Volleys Fired 694 | . 59 5 59 4 59 40 12 26 . 11 14 57 10 1 11 15 6 18 73 56 73 74 11 Largest 2 | . 2 2 2 2 2 1 1 1 . 1 1 2 1 1 1 2 1 2 2 2 2 2 1 Hottest 188 | . 105 60 125 88 100 56 40 40 . 69 33 114 45 39 39 143 51 90 138 176 169 188 113 Shots Fired 888 | . 94 10 111 8 80 41 14 27 . 12 14 58 11 1 11 16 6 20 100 57 95 91 11 Gun 383 | . 94 10 89 8 48 1 . . . . . . . . . . . . . 2 52 76 3 Cannon 395 | . . . 22 . 30 25 12 27 . 2 14 20 2 . 9 14 1 16 98 49 35 12 7 Launcher 64 | . . . . . . 14 2 . . 6 . 9 9 1 1 2 5 4 2 6 . 3 . Special 46 | . . . . . 2 1 . . . 4 . 29 . . 1 . . . . . 8 . 1 Kinetic 319 | . 5 5 57 4 21 2 12 27 . . 14 6 2 . 9 6 1 16 83 37 . 12 . Thermal 252 | . 24 . 44 4 9 . . . . . . . . . . 8 . . 15 14 62 62 10 Explosive 53 | . . . . . . 14 2 . . 5 . 9 2 . . 1 5 4 2 6 . 3 . Electromagnetic 220 | . 65 5 10 . 50 24 . . . 3 . 14 7 1 1 1 . . . . 25 14 . Robot Hit Streak 29 | . 9 6 18 3 23 29 6 4 . 7 3 15 4 . 7 5 8 11 20 17 13 13 5 Robot Miss Streak 16 | . 6 1 16 3 2 3 2 2 . 6 1 3 2 . 2 6 . 3 5 4 4 6 1 Penetration Max . | . . . . . . . . . . . . . . . . . . . . . . . . Secondary Targets 6 | . . 1 1 . 2 . . . . . . . . . . . . . . . 1 1 . Max Gunslinging Chain 1 | . . 1 1 . 1 . . . . . . . . . . . . . . . 1 1 . Shots Hit Robots 716 | . 46 8 78 4 68 84 17 29 . 16 17 42 4 . 21 13 6 10 113 18 58 56 8 Core Hits 528 | . 20 5 39 3 32 56 3 10 . 53 6 54 16 3 25 14 11 14 48 62 21 29 4 Critical Kills 10 | . . . 1 . . . . . . . . . . . . 4 . 3 1 . 1 . . Critical Parts Destroyed 4 | . . . . . 1 . . . . . . . . . . . 1 1 1 . . . . Critical Strikes 45 | . 2 . 4 . 3 2 1 4 . 1 1 . . . 4 4 1 4 9 . 5 . . Burn 5 | . 1 . 3 . . . . . . . . . . . . . . . . . 1 . . Meltdown 3 | . . . . . . . . . . . . . . . . 1 . . 1 . 1 . . Destroy 11 | . . . 1 . 1 . . . . . . . . . . 3 1 4 1 . . . . Blast 6 | . . . . . . . . 2 . . . . . . 1 . . . 3 . . . . Corrupt 4 | . 1 . . . . . . . . . . . . . . . . . . . 3 . . Sever 16 | . . . . . 2 2 1 2 . 1 1 . . . 3 . . . 4 . . . . Melee Attacks 366 | . 7 . . . 17 119 15 12 . 13 27 2 . . 32 30 . . 70 . . 17 5 Impact . | . . . . . . . . . . . . . . . . . . . . . . . . Slashing 325 | . 7 . . . 17 119 15 12 . 13 27 2 . . 32 30 . . 34 . . 17 . Piercing 41 | . . . . . . . . . . . . . . . . . . . 36 . . . 5 Sneak Attacks 43 | . 3 . . . 3 22 . 8 . . 3 . . . . 4 . . . . . . . Combat Hostiles 2 | . . . . . . 1 . . . . 1 . . . . . . . . . . . . Follow-up Attacks 1 | . . . . . . . . . . . . . . . . . . . . . . . 1 Damage Inflicted 31341 | . 994 90 1205 64 1526 4224 735 1256 . 2345 860 1877 995 46 2082 900 770 631 4924 2043 1788 1765 221 Guns 4262 | . 579 90 782 64 432 . . . . . . . . . . . . . . . 898 1341 76 Cannons 7567 | . . . 268 . 614 415 177 622 . 50 100 428 39 . 241 232 15 93 2570 599 890 130 84 Explosions 11074 | . 195 . 155 . 69 1137 303 . . 2019 . 1449 956 46 1319 214 755 538 339 1444 . 136 . Melee 8424 | . 220 . . . 411 2672 255 634 . 276 760 . . . 522 454 . . 2015 . . 158 47 Ramming 14 | . . . . . . . . . . . . . . . . . . . . . . . 14 Kinetic 4687 | . 10 37 472 48 193 23 177 622 . . 100 147 39 . 241 55 15 93 2097 220 . 98 . Thermal 5321 | . 368 . 630 16 147 . . . . . . . 282 . . 177 . . 473 379 1494 1195 160 Explosive 8404 | . . . . . . 1028 303 . . 1997 . 1449 219 . . 196 755 538 339 1444 . 136 . Electromagnetic 4466 | . 396 53 103 . 775 501 . . . 72 . 281 455 46 1319 18 . . . . 294 153 . Impact 25 | . . . . . . . . . . . . . . . . . . . . . . 25 . Slashing 7765 | . 220 . . . 411 2672 255 634 . 276 760 . . . 522 454 . . 1403 . . 158 . Piercing 659 | . . . . . . . . . . . . . . . . . . . 612 . . . 47 Highest Corruption 80 | . 1 1 . . 1 10 10 10 10 11 2 28 61 61 80 4 4 4 14 15 38 69 69 Average Corruption 18 | . 1 1 . . 1 6 10 10 10 9 1 17 39 61 68 4 4 4 12 14 12 47 69 Corruption Purged . | . . . . . . . . . . . . . . . . . . . . . . . . Corruption Blocked . | . . . . . . . . . . . . . . . . . . . . . . . . Effects 477 | . 2 2 . . 5 36 25 29 4 34 . 59 38 6 40 3 18 7 24 27 25 67 26 Message Errors 125 | . . . . . 1 10 8 7 1 8 . 18 12 2 8 1 8 4 6 8 3 15 5 Matter Fused 87 | . . . . . 1 8 2 8 1 5 . 11 11 1 7 1 3 . 3 7 6 6 6 Heat Flow Errors 50 | . 1 . . . . 5 3 4 . 4 . 8 1 . 2 1 3 1 2 2 4 4 5 Energy Discharges 47 | . . . . . 1 1 3 2 1 2 . 7 4 . 1 . . 2 5 4 4 8 2 Parts Rejected 8 | . . . . . . 1 . 1 . . . 1 . . 2 . . . . 1 . 1 1 Parts Fused 9 | . . 1 . . . 2 1 1 . . . . 1 . 1 . 1 . . . . . 1 Data Loss (minor) 55 | . 1 . . . 2 5 3 3 . 8 . 6 7 2 5 . 1 . 3 1 3 2 3 Data Loss (major) 20 | . . 1 . . . 1 1 1 1 5 . 2 1 1 2 . 2 . 1 . . 1 . Misfires 14 | . . . . . . 1 2 1 . 1 . 1 1 . . . . . 1 1 3 1 1 Alerts 14 | . . . . . . 2 2 1 . 1 . 2 . . 2 . . . 1 1 . 1 1 Misdirections 26 | . . . . . . . . . . . . 2 . . 10 . . . 1 1 . 12 . Weapon Failures 22 | . . . . . . . . . . . . 1 . . . . . . 1 1 2 16 1 Overload Shots . | . . . . . . . . . . . . . . . . . . . . . . . . Overflow Damage 1614 | . 98 . 32 . 76 538 54 69 . 59 73 12 . . 84 167 55 . 154 73 52 18 . Projectiles 280 | . . . . . 28 13 . 23 . . . . . . 22 . . . 87 50 52 5 . Explosions 266 | . 34 . 32 . . 31 20 . . 26 . 12 . . 33 . 55 . . 23 . . . Melee 1068 | . 64 . . . 48 494 34 46 . 33 73 . . . 29 167 . . 67 . . 13 . Knockbacks 31 | . . . 8 . . . 3 3 . . . 2 1 . 2 . . 1 9 2 . . . Impact . | . . . . . . . . . . . . . . . . . . . . . . . . Kinetic 29 | . . . 8 . . . 3 1 . . . 2 1 . 2 . . 1 9 2 . . . Secondary 2 | . . . . . . . . 2 . . . . . . . . . . . . . . . Self-Inflicted Damage 1270 | . 80 . 40 . . 149 36 . . 60 . 141 . 14 99 . 35 41 142 336 . 97 . Shots 48 | . 2 . 1 . . 5 1 . . 3 . 8 . 1 1 . 2 2 7 12 . 3 . Rammed . | . . . . . . . . . . . . . . . . . . . . . . . . Targets Rammed 1 | . . . . . . . . . . . . . . . . . . . . . . . 1 Kicked 1 | . . . . . . . . . . . . . . . . . . . . . . . 1 Crushed . | . . . . . . . . . . . . . . . . . . . . . . . . Highest Temperature 508 | . 306 64 208 1 129 235 228 251 . 272 3 319 280 4 284 166 273 197 298 232 327 508 268 Average Temperature 80 | . 85 29 37 1 39 57 93 73 . 111 3 104 116 3 113 56 128 57 72 68 112 110 90 Received Heat Transfer 4831 | . 171 24 453 51 315 525 . 312 . 45 255 222 18 . 246 147 27 . 1079 279 141 503 18 Effects 11 | . 1 . . . . . . . . 1 . . . . . . . . 2 . . 7 . Energy Bleed 4 | . 1 . . . . . . . . 1 . . . . . . . . . . . 2 . Interference 2 | . . . . . . . . . . . . . . . . . . . 2 . . . . Short Circuit 2 | . . . . . . . . . . . . . . . . . . . . . . 2 . Damage (major) 3 | . . . . . . . . . . . . . . . . . . . . . . 3 . Siege Activations 10 | . . . . . . . . . . . . . . . . 1 . 2 5 . 1 1 . Total Turns 215 | . . . . . . . . . . . . . . . . 11 . 29 131 . 14 30 . Longest Duration 61 | . . . . . . . . . . . . . . . . 11 . 27 61 . 14 30 . Martial Activations . | . . . . . . . . . . . . . . . . . . . . . . . . Shielding Activations . | . . . . . . . . . . . . . . . . . . . . . . . . Robots Disrupted . | . . . . . . . . . . . . . . . . . . . . . . . . Combat Hostiles . | . . . . . . . . . . . . . . . . . . . . . . . . Robots Corrupted 9 | . . . . . . 1 . . . . . . 2 . 3 . . . . . 2 1 . Combat Hostiles 7 | . . . . . . 1 . . . . . . 2 . 1 . . . . . 2 1 . Parts Fried 16 | . . . . . 1 2 . . . . . . 1 . 11 . . . . . 1 . . Impact Corruptions 1 | . . . . . . . . . . . . . . . . . . . . . . 1 . Robots Melted 3 | . . . . . . . . . . . . . . . . 1 . . 1 . 1 . . Combat Hostiles 2 | . . . . . . . . . . . . . . . . 1 . . 1 . . . . Parts Melted 19 | . 1 . 1 . . . . . . . . . . . . 5 . . 1 . 6 5 . Heat Transferred 6972 | . 731 . 1556 37 285 . . . . . . . 150 . . 250 . . 481 296 1521 1480 185 Parts Sabotaged . | . . . . . . . . . . . . . . . . . . . . . . . . Parts Stolen . | . . . . . . . . . . . . . . . . . . . . . . . . Parts Stripped . | . . . . . . . . . . . . . . . . . . . . . . . . Power Chain Reactions 6 | . 2 . 1 . 2 . . . . . . . 1 . . . . . . . . . . Alert | -11 -10 -10 -9 -9 -8 -7 -7 -7 -7 -6 -6 -6 -6 -6 -6 -5 -5 -5 -4 -4 -3 -3 -3 ------- Run | Yrd Mat Min Mat Min Mat Fac Low Low Zio Pro Fac Ext Cet Arc Hub Fac Upp Upp Fac Arm Res Gar Res Maximum Alert Level 3 | . . . 1 . . 2 . . . . 1 2 2 1 2 3 . . 2 1 . 1 . Low Security (%) 65 | 100 100 100 94 100 100 92 . . . . 55 34 7 25 49 14 . . 39 25 100 35 100 Level 1 26 | . . . 5 . . 5 . . . . 44 47 88 74 . 34 . . 52 74 . 64 . Level 2 7 | . . . . . . 1 . . . . . 17 4 . 50 39 . . 7 . . . . Level 3 . | . . . . . . . . . . . . . . . . 12 . . . . . . . Level 4 . | . . . . . . . . . . . . . . . . . . . . . . . . Level 5 . | . . . . . . . . . . . . . . . . . . . . . . . . High Security . | . . . . . . . . . . . . . . . . . . . . . . . . Max Security . | . . . . . . . . . . . . . . . . . . . . . . . . Peak Influence 891 | . 97 50 220 45 190 413 . . . . 272 455 449 256 568 891 . . 472 398 194 342 74 Initial 242 | . . 7 3 45 . 71 . . . . . 50 242 174 79 242 . . 209 225 194 96 74 Average 158 | . 33 21 98 4 73 80 . . . . 116 254 275 223 293 387 . . 226 254 137 220 35 Influence Increases 10158 | . 376 50 550 40 545 977 90 20 . 399 401 1012 677 202 791 1123 140 290 881 582 467 386 159 Destroy 0b10 Robot/C 5260 | . 220 40 320 40 340 480 80 20 . 320 160 560 260 80 220 440 100 240 560 200 300 200 80 Destroy 0b10 Robot/NC 300 | . 25 . 20 . 40 80 . . . 5 20 30 10 5 20 35 . . . . 5 . 5 Destroy Leader 994 | . 54 10 82 . 94 122 10 . . 30 42 62 20 . 60 116 . 20 130 30 80 10 22 Allied During Kill 1357 | . . . . . . . . . . 44 39 214 290 83 201 331 40 30 . 24 42 . 19 Successful Hack 92 | . 22 . . . 8 20 . . . . . 28 . . . . . . . . 14 . . Disable Machine 645 | . 15 . 60 . 30 105 . . . . 60 30 30 30 150 15 . . 15 90 . . 15 Anti-Garrison Action 100 | . . . . . . . . . . . . . . . . . . . . . . 100 . Destroy Structure 1035 | . 10 . 23 . 33 140 . . . . 35 73 52 4 95 126 . . 146 208 26 46 18 Partial Spotted 30 | . . . . . . 15 . . . . . . . . . . . . . . . 15 . Lose Combat Pursuer 345 | . 30 . 45 . . 15 . . . . 45 15 15 . 45 60 . . 30 30 . 15 . Influence Decreases 10148 | . 355 61 444 156 388 746 478 20 . 399 298 681 674 413 521 728 717 271 754 671 709 383 281 Entered New Map 2251 | . . 14 7 71 . 86 145 . . . . 53 192 263 147 254 331 61 124 235 177 33 58 Time Decay 5826 | . 315 47 337 85 388 525 253 20 . 339 178 463 362 50 254 374 386 140 470 286 392 . 162 Lost Part 1379 | . 40 . 100 . . 135 80 . . . 70 100 20 . 20 20 . 10 160 130 100 350 44 Lost Ally 692 | . . . . . . . . . . 60 50 65 100 100 100 80 . 60 . 20 40 . 17 Squads Dispatched 53 | . 3 . 2 . 1 11 . . . 1 3 4 . . 4 5 . . 11 3 5 . . Investigation 10 | . 2 . . . . 4 . . . . 1 3 . . . . . . . . . . . Extermination 12 | . . . . . . 3 . . . . . . . . 1 2 . . 2 2 2 . . Reinforcement 18 | . 1 . 2 . 1 3 . . . . 2 1 . . 2 1 . . 3 1 1 . . Assault 2 | . . . . . . . . . . 1 . . . . 1 . . . . . . . . Garrison 11 | . . . . . . 1 . . . . . . . . . 2 . . 6 . 2 . . Intercept . | . . . . . . . . . . . . . . . . . . . . . . . . Searches Triggered . | . . . . . . . . . . . . . . . . . . . . . . . . Construction Impeded 5 | . . . . . . 1 . . . . . 1 . . 1 1 . . . . 1 . . Haulers Reinforced . | . . . . . . . . . . . . . . . . . . . . . . . . Active Scanning Responses . | . . . . . . . . . . . . . . . . . . . . . . . . Cargo Convoy Interrupts . | . . . . . . . . . . . . . . . . . . . . . . . . Stealth | -11 -10 -10 -9 -9 -8 -7 -7 -7 -7 -6 -6 -6 -6 -6 -6 -5 -5 -5 -4 -4 -3 -3 -3 --------- Run | Yrd Mat Min Mat Min Mat Fac Low Low Zio Pro Fac Ext Cet Arc Hub Fac Upp Upp Fac Arm Res Gar Res Distress Signals 20 | . . . 3 . 1 2 . . . . . . 2 . 1 3 . . 3 4 . 1 . Communications Jammed . | . . . . . . . . . . . . . . . . . . . . . . . . Distress Signals . | . . . . . . . . . . . . . . . . . . . . . . . . Times Spotted 412 | . 19 2 23 3 24 37 8 5 . 16 24 30 14 5 15 30 5 7 34 28 15 59 9 Peak Tracking Total 24 | . 6 2 5 2 6 4 4 4 . 5 12 6 5 1 6 6 5 6 3 18 3 24 4 Tactical Retreats 22 | . 1 . 2 . . 1 . 1 . . 3 1 1 . 2 2 . . 1 2 . 5 . Traps | -11 -10 -10 -9 -9 -8 -7 -7 -7 -7 -6 -6 -6 -6 -6 -6 -5 -5 -5 -4 -4 -3 -3 -3 ------- Run | Yrd Mat Min Mat Min Mat Fac Low Low Zio Pro Fac Ext Cet Arc Hub Fac Upp Upp Fac Arm Res Gar Res Traps Triggered 7 | . 2 . . . . . . . . . 1 4 . . . . . . . . . . . Indirectly . | . . . . . . . . . . . . . . . . . . . . . . . . Trap Hack Attempts . | . . . . . . . . . . . . . . . . . . . . . . . . Triggered . | . . . . . . . . . . . . . . . . . . . . . . . . Disarmed . | . . . . . . . . . . . . . . . . . . . . . . . . Reprogrammed . | . . . . . . . . . . . . . . . . . . . . . . . . Reused . | . . . . . . . . . . . . . . . . . . . . . . . . Traps Extracted . | . . . . . . . . . . . . . . . . . . . . . . . . Installed . | . . . . . . . . . . . . . . . . . . . . . . . . Triggered . | . . . . . . . . . . . . . . . . . . . . . . . . Machines | -11 -10 -10 -9 -9 -8 -7 -7 -7 -7 -6 -6 -6 -6 -6 -6 -5 -5 -5 -4 -4 -3 -3 -3 ---------- Run | Yrd Mat Min Mat Min Mat Fac Low Low Zio Pro Fac Ext Cet Arc Hub Fac Upp Upp Fac Arm Res Gar Res Machines Disabled 46 | . 1 . 4 . 2 7 . . . . 4 2 2 2 10 1 3 . 1 6 . . 1 Max in Single Turn 6 | . 1 . 1 . 1 1 . . . . 1 1 1 1 6 . 1 . 1 1 . . 1 Network Hub 1 | . . . . . . . . . . . . . . . 1 . . . . . . . . Energy Cycler 1 | . . . . . . . . . . . . . . . . . . . . 1 . . . Machines Repaired . | . . . . . . . . . . . . . . . . . . . . . . . . Machines Dismantled 2 | . . . . . . . . . . . . . 2 . . . . . . . . . . Machines Sabotaged . | . . . . . . . . . . . . . . . . . . . . . . . . Overloaded Fab Kills . | . . . . . . . . . . . . . . . . . . . . . . . . Hacking | -11 -10 -10 -9 -9 -8 -7 -7 -7 -7 -6 -6 -6 -6 -6 -6 -5 -5 -5 -4 -4 -3 -3 -3 --------- Run | Yrd Mat Min Mat Min Mat Fac Low Low Zio Pro Fac Ext Cet Arc Hub Fac Upp Upp Fac Arm Res Gar Res Machines Accessed 25 | . 4 . . . 3 6 . 2 1 . 1 4 . . . . 1 . 1 . 2 . . Terminals 15 | . 4 . . . 3 4 . . . . . 4 . . . . . . . . . . . Fabricators 3 | . . . . . . 1 . . . . 1 . . . . . . . . . 1 . . Repair Stations 1 | . . . . . . . . . . . . . . . . . . . 1 . . . . Recycling Units . | . . . . . . . . . . . . . . . . . . . . . . . . Scanalyzers . | . . . . . . . . . . . . . . . . . . . . . . . . Garrison Access 2 | . . . . . . 1 . . . . . . . . . . . . . . 1 . . Total Hacks 60 | . 11 . . . 4 18 . 8 4 . 2 8 . . . . 1 . 2 . 2 . . Successful 29 | . 3 . . . 1 5 . 8 4 . 2 4 . . . . 1 . . . 1 . . Failed 31 | . 8 . . . 3 13 . . . . . 4 . . . . . . 2 . 1 . . Catastrophic 9 | . 2 . . . . 5 . . . . . 2 . . . . . . . . . . . Database Lockouts . | . . . . . . . . . . . . . . . . . . . . . . . . Manual 101 | . 12 . . . 5 14 . . 1 . 6 18 1 . 13 16 . . 3 5 2 . 5 Terminals 36 | . 11 . . . 4 13 . . . . . 8 . . . . . . . . . . . Fabricators 5 | . . . . . . 2 . . . . 2 . . . . . . . . . 1 . . Repair Stations 2 | . . . . . . . . . . . . . . . . . . . 2 . . . . Recycling Units . | . . . . . . . . . . . . . . . . . . . . . . . . Scanalyzers . | . . . . . . . . . . . . . . . . . . . . . . . . Garrison Access 4 | . . . . . . 3 . . . . . . . . . . . . . . 1 . . Terminal Hacks 24 | . 3 . . . 1 3 . 8 4 . . 4 . . . . 1 . . . . . . Record 7 | . . . . . . . . 7 . . . . . . . . . . . . . . . Part Schematic 5 | . 1 . . . . . . . 4 . . . . . . . . . . . . . . Robot Schematic 1 | . 1 . . . . . . . . . . . . . . . . . . . . . . Robot Analysis 1 | . . . . . . 1 . . . . . . . . . . . . . . . . . Open Door 6 | . . . . . . . . 1 . . . 4 . . . . 1 . . . . . . Branch Access Points 1 | . . . . . . 1 . . . . . . . . . . . . . . . . . Terminal Index 1 | . . . . . . 1 . . . . . . . . . . . . . . . . . Registered Components 2 | . 1 . . . 1 . . . . . . . . . . . . . . . . . . Fabricator Hacks 4 | . . . . . . 2 . . . . 2 . . . . . . . . . . . . Load Schematic 2 | . . . . . . 1 . . . . 1 . . . . . . . . . . . . Build 2 | . . . . . . 1 . . . . 1 . . . . . . . . . . . . Repair Station Hacks . | . . . . . . . . . . . . . . . . . . . . . . . . Recycling Unit Hacks . | . . . . . . . . . . . . . . . . . . . . . . . . Scanalyzer . | . . . . . . . . . . . . . . . . . . . . . . . . Garrison Access Hacks 1 | . . . . . . . . . . . . . . . . . . . . . 1 . . Unlock Access 1 | . . . . . . . . . . . . . . . . . . . . . 1 . . Unauthorized Hacks . | . . . . . . . . . . . . . . . . . . . . . . . . Terminals . | . . . . . . . . . . . . . . . . . . . . . . . . Fabricators . | . . . . . . . . . . . . . . . . . . . . . . . . Repair Stations . | . . . . . . . . . . . . . . . . . . . . . . . . Recycling Units . | . . . . . . . . . . . . . . . . . . . . . . . . Scanalyzers . | . . . . . . . . . . . . . . . . . . . . . . . . Garrison Access . | . . . . . . . . . . . . . . . . . . . . . . . . Data Cores Recovered 1 | . . . . . . . . . . . . . . . 1 . . . . . . . . Used . | . . . . . . . . . . . . . . . . . . . . . . . . Hacking Detections 18 | . 3 . . . 3 6 . . . . 1 2 . . . 1 . . 1 . 1 . . Full Trace Events 7 | . 1 . . . . 4 . . . . 1 1 . . . . . . . . . . . Feedback Events . | . . . . . . . . . . . . . . . . . . . . . . . . Feedback Blocked . | . . . . . . . . . . . . . . . . . . . . . . . . Robot Schematics Acquired 3 | . 1 . . . . . . . 2 . . . . . . . . . . . . . . Robots Built 1 | . . . . . . . . . . . 1 . . . . . . . . . . . . Authchips . | . . . . . . . . . . . . . . . . . . . . . . . . Time 81 | . . . . . . . . . . . 81 . . . . . . . . . . . . Total Robot Build Rating 1 | . . . . . . . . . . . 1 . . . . . . . . . . . . Part Schematics Acquired 19 | . 1 . . . . . . . 18 . . . . . . . . . . . . . . Parts Built 1 | . . . . . . 1 . . . . . . . . . . . . . . . . . Authchips . | . . . . . . . . . . . . . . . . . . . . . . . . Time 51 | . . . . . . 51 . . . . . . . . . . . . . . . . . Total Part Build Rating 1 | . . . . . . 1 . . . . . . . . . . . . . . . . . Part Studies Acquired . | . . . . . . . . . . . . . . . . . . . . . . . . Parts Repaired . | . . . . . . . . . . . . . . . . . . . . . . . . Time . | . . . . . . . . . . . . . . . . . . . . . . . . Parts Recycled . | . . . . . . . . . . . . . . . . . . . . . . . . Recycled Matter . | . . . . . . . . . . . . . . . . . . . . . . . . Retrieved Matter . | . . . . . . . . . . . . . . . . . . . . . . . . Retrieved Components . | . . . . . . . . . . . . . . . . . . . . . . . . Parts Scanalyzed . | . . . . . . . . . . . . . . . . . . . . . . . . Part Schematics Acquired . | . . . . . . . . . . . . . . . . . . . . . . . . Parts Damaged . | . . . . . . . . . . . . . . . . . . . . . . . . Bothacking | -11 -10 -10 -9 -9 -8 -7 -7 -7 -7 -6 -6 -6 -6 -6 -6 -5 -5 -5 -4 -4 -3 -3 -3 ------------ Run | Yrd Mat Min Mat Min Mat Fac Low Low Zio Pro Fac Ext Cet Arc Hub Fac Upp Upp Fac Arm Res Gar Res Used RIF Installer . | . . . . . . . . . . . . . . . . . . . . . . . . Robots Hacked 2 | . . . . . . 1 . . . . . . . . . . . . . . . . 1 Non-combat 2 | . . . . . . 1 . . . . . . . . . . . . . . . . 1 Combat . | . . . . . . . . . . . . . . . . . . . . . . . . Robot Hacks Applied 2 | . . . . . . 1 . . . . . . . . . . . . . . . . 1 find_chute 1 | . . . . . . 1 . . . . . . . . . . . . . . . . . find_recycling 1 | . . . . . . . . . . . . . . . . . . . . . . . 1 Relay Couplers Released 11 | . . . . . . . . . . . . . . . . 7 . . . . 4 . . Programmers 11 | . . . . . . . . . . . . . . . . 7 . . . . 4 . . Fabnet Peak Effective % . | . . . . . . . . . . . . . . . . . . . . . . . . Robots Rewired 17 | . . . . . . . . . . 1 . 16 . . . . . . . . . . . Allies Hacked 2 | . . . . . . . . . . . . . . . . . 1 . . . 1 . . Hacks Repelled . | . . . . . . . . . . . . . . . . . . . . . . . . Allies | -11 -10 -10 -9 -9 -8 -7 -7 -7 -7 -6 -6 -6 -6 -6 -6 -5 -5 -5 -4 -4 -3 -3 -3 -------- Run | Yrd Mat Min Mat Min Mat Fac Low Low Zio Pro Fac Ext Cet Arc Hub Fac Upp Upp Fac Arm Res Gar Res Total Allies 64 | . . . . 1 . . . . 4 1 4 26 5 . 6 9 . . . 2 3 . 3 Largest Group 20 | . . . . 1 . . . . 4 4 3 18 20 13 12 8 3 2 . 2 3 . 2 Highest-Rated Group 1163 | . . . . 31 . . . . 156 156 210 775 1163 750 804 599 216 181 . 100 288 . 206 Highest-Rated Ally 159 | . . . . 31 . . . . 40 40 70 159 159 159 96 96 96 96 . 50 96 . 103 Zionite Dispatches 14 | . . . . . . . . . . . 1 2 . . 2 4 . . 1 1 1 . 2 Heavy 3 | . . . . . . . . . . . . 1 . . . 1 . . . . . . 1 Light 5 | . . . . . . . . . . . 1 . . . 2 1 . . . . 1 . . Recon 1 | . . . . . . . . . . . . . . . . . . . 1 . . . . Fire 1 | . . . . . . . . . . . . 1 . . . . . . . . . . . Demo 2 | . . . . . . . . . . . . . . . . 1 . . . 1 . . . Infowar Resupply 1 | . . . . . . . . . . . . . . . . 1 . . . . . . . Hacking Resupply 1 | . . . . . . . . . . . . . . . . . . . . . . . 1 Total Orders 19 | . . . . . . . . . . . 1 . 9 . . 3 . . 4 . . . 2 STAY 8 | . . . . . . . . . . . . . 7 . . 1 . . . . . . . ROAM 1 | . . . . . . . . . . . . . . . . . . . . . . . 1 FOLLOW 2 | . . . . . . . . . . . . . 2 . . . . . . . . . . AID 1 | . . . . . . . . . . . 1 . . . . . . . . . . . . DROP 2 | . . . . . . . . . . . . . . . . 1 . . . . . . 1 PICKUP 1 | . . . . . . . . . . . . . . . . 1 . . . . . . . EXPLORE 3 | . . . . . . . . . . . . . . . . . . . 3 . . . . RETURN 1 | . . . . . . . . . . . . . . . . . . . 1 . . . . Ally Attacks 444 | . . . . . . . . . . 16 38 100 61 22 70 82 7 6 . 4 28 . 10 Total Damage 15237 | . . . . . . . . . . 382 1297 2372 2548 801 1821 3088 345 434 . 197 1318 . 634 Kills 98 | . . . . . . . . . . 6 9 22 14 5 9 19 3 3 . 1 4 . 3 Allies Corrupted 7 | . . . . . . . . . . . . . . . 5 . . . . . 1 . 1 Allies Melted 1 | . . . . . . . . . . . . 1 . . . . . . . . . . . Intel | -11 -10 -10 -9 -9 -8 -7 -7 -7 -7 -6 -6 -6 -6 -6 -6 -5 -5 -5 -4 -4 -3 -3 -3 ------- Run | Yrd Mat Min Mat Min Mat Fac Low Low Zio Pro Fac Ext Cet Arc Hub Fac Upp Upp Fac Arm Res Gar Res Active Infowar (turns) 6427 | . . . . . . 1814 29 . . . 599 120 . . . 854 908 281 965 539 . . 318 Sensors 2942 | . . . . . . 1784 29 . . . 577 . . . . 246 . . . . . . 306 IFF 261 | . . . . . . . . . . . . . . . . . . . . 261 . . . Terrain 1242 | . . . . . . . . . . . . . . . . 199 29 . 803 . . . 211 Structural 3595 | . . . . . . 883 . . . . 447 120 . . . 182 908 281 253 521 . . . Decoding 2895 | . . . . . . . . . . . . . . . . 854 908 281 852 . . . . Robot Analysis Total 1 | . . . . . . 1 . . . . . . . . . . . . . . . . . Derelict Logs Recovered 5 | . . 1 . 2 . . . 1 . . . . . . . . 1 . . . . . . Drone Launches 3 | . . . . . . . . . . . . . . . . . . . 3 . . . . Drone Recoveries 2 | . . . . . . . . . . . . . . . . . . . 2 . . . . Decoded 0b10 Intel 30 | . . . . . . . . . . . . . . . . 16 . . 14 . . . . Traps 21 | . . . . . . . . . . . . . . . . 9 . . 12 . . . . Emergency Access 7 | . . . . . . . . . . . . . . . . 6 . . 1 . . . . Garrisons 1 | . . . . . . . . . . . . . . . . . . . 1 . . . . Exits 1 | . . . . . . . . . . . . . . . . 1 . . . . . . . Zionite Intel Received 5 | . . . . . . . . . . . . 2 . . 2 1 . . . . . . . Emergency Access 1 | . . . . . . . . . . . . . . . 1 . . . . . . . . Guard Positions 1 | . . . . . . . . . . . . . . . . 1 . . . . . . . Prototype Stockpiles 1 | . . . . . . . . . . . . 1 . . . . . . . . . . . Unaware Analyses 1 | . . . . . . . . . . . . 1 . . . . . . . . . . . Depthwide Sectors/-1 1 | . . . . . . . . . . . . . . . 1 . . . . . . . . Exploration | -11 -10 -10 -9 -9 -8 -7 -7 -7 -7 -6 -6 -6 -6 -6 -6 -5 -5 -5 -4 -4 -3 -3 -3 ------------- Run | Yrd Mat Min Mat Min Mat Fac Low Low Zio Pro Fac Ext Cet Arc Hub Fac Upp Upp Fac Arm Res Gar Res Turns Passed 20599 | 65 1097 139 862 918 1095 1910 669 818 2450 1080 678 1368 829 110 547 872 908 281 1192 626 936 731 418 Spaces Moved 9998 | 58 609 87 426 326 536 825 314 359 1285 580 297 530 301 49 251 429 554 126 394 357 636 398 271 Core 97 | 3 . . . . . . . 1 . . . . . . . . . . . 52 30 1 10 Treads 4498 | . 303 . 93 325 536 494 . 25 15 487 293 4 104 49 251 429 554 126 221 . 33 156 . Legs 898 | . . . 1 . . . . . . . . 402 197 . . . . . 27 . 31 82 158 Wheels 4059 | 55 306 87 332 1 . 331 314 333 1270 93 4 124 . . . . . . 146 305 358 . . Hover 103 | . . . . . . . . . . . . . . . . . . . . . . . 103 Flight 343 | . . . . . . . . . . . . . . . . . . . . . 184 159 . Fastest Speed 22 | 50 90 140 110 175 157 99 99 175 175 159 159 190 160 160 160 160 160 160 135 50 35 22 50 Average Speed 158 | 87 140 140 143 239 157 147 188 188 186 164 159 199 180 160 160 160 160 160 158 125 94 101 116 Slowest Speed 1550 | 90 240 140 480 240 160 320 190 1550 240 236 238 400 240 160 160 160 160 160 270 150 250 240 190 Overloaded Moves . | . . . . . . . . . . . . . . . . . . . . . . . . Propulsion Burnouts . | . . . . . . . . . . . . . . . . . . . . . . . . Robots Hopped 14 | . . . . . . . . . . . . . . . . . . . . . . 14 . Potential Cave-ins 15 | . . . . . . . . . . . . 12 . . . . . . 1 2 . . . Cave-ins Triggered 4 | . . . . . . . . . . . . 3 . . . 1 . . . . . . . Exploration Rate (%) 39 | 3 71 27 38 50 44 18 52 46 90 67 8 63 83 71 23 16 68 16 16 21 11 35 6 Regions Visited 23 Branch Regions 13 Pre-discovered Areas 8 | . . . . 1 . . . . 2 . . . . . 5 . . . . . . . . Known Exits Taken 16 | . . . . . 1 1 1 1 1 1 1 1 1 1 1 1 1 1 1 . 1 . . Unknown Exits Taken 6 | 1 1 1 1 1 . . . . . . . . . . . . . . . 1 . . . Scrap Searched 16 | . . 1 . . . . 2 3 4 2 . . . . . . 3 1 . . . . . Spaces Dug 260 | . . . . . 5 26 . 1 . 16 18 113 . . 8 23 . . 16 19 9 5 1 Terrain Destroyed 1277 | . 8 . 20 . 48 176 29 6 . 91 20 277 76 . 174 33 23 68 76 118 15 14 5 Melee 86 | . . . . . 5 26 . 1 . . 9 . . . 8 23 . . 13 . . . 1 Projectile 91 | . . . . . . . 3 5 . . 11 1 . . . 3 . . 22 26 15 1 4 AOE 1100 | . 8 . 20 . 43 150 26 . . 91 . 276 76 . 166 7 23 68 41 92 . 13 . Terrain Rammed . | . . . . . . . . . . . . . . . . . . . . . . . . Walls Destroyed . | . . . . . . . . . . . . . . . . . . . . . . . . Machines Disabled . | . . . . . . . . . . . . . . . . . . . . . . . . Actions | -11 -10 -10 -9 -9 -8 -7 -7 -7 -7 -6 -6 -6 -6 -6 -6 -5 -5 -5 -4 -4 -3 -3 -3 --------- Run | Yrd Mat Min Mat Min Mat Fac Low Low Zio Pro Fac Ext Cet Arc Hub Fac Upp Upp Fac Arm Res Gar Res Total 13243 | 69 742 95 568 455 694 1308 358 457 1343 672 451 779 510 80 334 557 569 183 740 470 872 592 345 Wait 1177 | . 24 2 27 116 13 208 11 24 10 49 80 79 140 27 17 38 7 37 141 12 46 47 22 Move 9949 | 57 608 86 425 325 535 824 313 358 1284 579 296 527 300 48 250 428 553 125 393 356 635 373 271 Hop 10 | . . . . . . . . . . . . . . . . . . . . . . 10 . Pick Up 193 | 6 14 2 14 4 19 28 1 8 9 3 6 11 4 . 2 12 . . 11 10 15 12 2 Fast Attach 205 | 6 9 . 12 3 2 15 . 4 9 4 5 12 4 1 6 5 . . 15 6 51 14 22 Attach 127 | . 1 . 12 . 4 19 3 10 4 1 4 10 1 . 2 5 . 1 16 3 9 18 4 Detach 48 | . . . . . . 2 1 7 2 . 1 1 1 . . 3 . . 10 3 9 4 4 Swap 162 | . 8 . 6 . 16 21 2 5 8 8 3 14 8 1 9 8 2 2 5 14 10 11 1 Drop 218 | . 12 . 13 3 29 32 . 3 17 4 11 9 10 2 5 13 . . 6 10 24 12 3 Fire 694 | . 59 5 59 4 59 40 12 26 . 11 14 57 10 1 11 15 6 18 73 56 73 74 11 Melee 365 | . 7 . . . 17 119 15 12 . 13 27 2 . . 32 30 . . 70 . . 17 4 Ram . | . . . . . . . . . . . . . . . . . . . . . . . . Kick 1 | . . . . . . . . . . . . . . . . . . . . . . . 1 Crush . | . . . . . . . . . . . . . . . . . . . . . . . . Escape Stasis 12 | . . . . . . . . . . . . 12 . . . . . . . . . . . Rewire 50 | . . . . . . . . . . . 4 45 . . . . 1 . . . . . . Trap . | . . . . . . . . . . . . . . . . . . . . . . . . Miscellaneous 32 | . . . . . . . . . . . . . 32 . . . . . . . . . . Route ------- -11/Scrapyard -10/Materials -10/Mines -9/Materials -9/Mines -8/Materials (discovered 3 exits: *Fac x3) -7/Factory (discovered 5 exits: *Fac / Sto x2 / *Low x2) -7/Lower Caves -7/Lower Caves (discovered 2 exits: *Fac / *Zio) -7/Zion -6/Proximity Caves -6/Factory -6/Extension (discovered 2 exits: *Fac / *Cet) -6/Cetus (discovered 2 exits: *Fac / *Arc) -6/Archives -6/Hub_04(d) -5/Factory -5/Upper Caves -5/Upper Caves (discovered 2 exits: *Fac / War) -4/Factory (discovered 2 exits: *Upp / *Arm) -4/Armory -3/Research (discovered 2 exits: Tes / Gar) -3/Garrison -3/Research History --------- Turn | Location | Event 13 | -11/Scrapyard | Discovered new exit (range 15) 66 | -11/Scrapyard | Entered Materials 318 | -10/Materials | Build established: Mutant 451 | -10/Materials | Discovered new exit (range 16) 1163 | -10/Materials | Entered Mines 1175 | -10/Mines | Learned Materials emergency access door positions 1295 | -10/Mines | Discovered new exit (range 7) 1302 | -10/Mines | Entered Materials 1302 | -9/Materials | Evolved 2 slots: Propulsion x2 1471 | -9/Materials | Lost 3 parts (1p1n1w) 1925 | -9/Materials | Lost 5 parts (1p4n) 2042 | -9/Materials | Discovered new exit (range 13) 2159 | -9/Materials | Build established: Scavenger-Mutant 2163 | -9/Materials | Core integrity fell below 50% 2164 | -9/Materials | Entered Mines 2173 | -9/Mines | Met a Derelict bent on vengeance 2341 | -9/Mines | Discovered new exit (range 5) 2562 | -9/Mines | Received a Mining Laser from a helpful Derelict 2950 | -9/Mines | Learned location of Zion (-7) 2958 | -9/Mines | Learned 8 Materials zone layouts 3082 | -9/Mines | Entered Materials 3082 | -8/Materials | Evolved 2 slots: Propulsion x1, Utility x1 3083 | -8/Materials | Identified exit to Factory 3412 | -8/Materials | Discovered exit to Factory (range 16) 4177 | -8/Materials | Entered Factory 4177 | -7/Factory | Evolved 2 slots: Propulsion x1, Utility x1 4440 | -7/Factory | Fabricated Cargo Storage Unit (x1) 4647 | -7/Factory | Discovered new exit (range 4) 4654 | -7/Factory | Identified exit to Factory 4875 | -7/Factory | Identified exit to Storage 4875 | -7/Factory | Identified exit to Lower Caves 5182 | -7/Factory | Lost 5 parts (1p3n1u) 5283 | -7/Factory | Lost 4 parts (3n1w) 5595 | -7/Factory | Build established: Scavenger-Assassin 5815 | -7/Factory | System corruption reached 10% 5984 | -7/Factory | Garrison activated, responded to threat 6060 | -7/Factory | Lost 4 parts (3n1u) 6087 | -7/Factory | Entered Lower Caves 6090 | -7/Lower Caves | Core integrity fell below 50% 6175 | -7/Lower Caves | Encountered a Warlord checkpoint 6177 | -7/Lower Caves | Lost 8 parts (6n1u1w) 6423 | -7/Lower Caves | Build established: Mutant 6735 | -7/Lower Caves | Discovered new exit (range 11) 6754 | -7/Lower Caves | Identified exit to Lower Caves 6756 | -7/Lower Caves | Entered another Lower Caves area 6758 | -7/Lower Caves | Ambushed by wild Derelicts 6824 | -7/Lower Caves | Lost 4 parts (2p1u1w) 6902 | -7/Lower Caves | Discovered exit to Factory (range 7) 7084 | -7/Lower Caves | Learned Factory interactive machine intel 7159 | -7/Lower Caves | Entered an active Warlord outpost 7210 | -7/Lower Caves | Learned location of 1 exit from Research 7210 | -7/Lower Caves | Learned Factory security intel 7210 | -7/Lower Caves | Learned Factory terminal intel 7375 | -7/Lower Caves | Attracted the attention of an 0b10 checkpoint 7553 | -7/Lower Caves | Discovered new exit (range 8) 7565 | -7/Lower Caves | Identified exit to Zion 7574 | -7/Lower Caves | Entered Zion 7666 | -7/Zion | System corruption cleaned by Quarantine Array 8021 | -7/Zion | Found Prototype Device 8021 | -7/Zion | Identified Mobile Refinery Mk. CCLXVII 8202 | -7/Zion | Learned location of Armory (-4) 8240 | -7/Zion | Visited the Megawrench Repair Shop 8240 | -7/Zion | Megawrench repaired 8 parts 8282 | -7/Zion | Received a hallucinogenic algorithm 8282 | -7/Zion | Ran a hallucination algorithm 8533 | -7/Zion | Given A8's code to call for help 8632 | -7/Zion | Build established: Derelict-Mutant 8801 | -7/Zion | Learned Factory fabricator intel 9068 | -7/Zion | Met Imprinter 9102 | -7/Zion | Imprinted 9104 | -7/Zion | Declared Zion's savior 9446 | -7/Zion | Found Prototype Launcher 9446 | -7/Zion | Identified Rocket Array 9456 | -7/Zion | Found Prototype Launcher 9456 | -7/Zion | Identified Gui. Missile Launcher 9471 | -7/Zion | Found Gui. Missile Launcher 9812 | -7/Zion | Discovered new exit (range 15) 9840 | -7/Zion | Identified exit to Proximity Caves 10024 | -7/Zion | Entered Proximity Caves 10024 | -6/Proximity Caves | Accompanied by 4 allies 10135 | -6/Proximity Caves | Build established: Mutant 10198 | -6/Proximity Caves | Attracted the attention of an 0b10 outpost 10231 | -6/Proximity Caves | Lost 3 allies 10508 | -6/Proximity Caves | Build established: Scavenger-Mutant 11078 | -6/Proximity Caves | Discovered exit to Factory (range 14) 11104 | -6/Proximity Caves | Entered Factory 11104 | -6/Factory | Evolved 2 slots: Propulsion x1, Utility x1 11106 | -6/Factory | Loaded intel: 56 interactive machine locations 11107 | -6/Factory | Loaded intel: 28 terminal locations 11108 | -6/Factory | Loaded intel: 6 fabricator locations 11214 | -6/Factory | Zion Light squad teleported in 11624 | -6/Factory | Build established: Scavenger-Assassin 11651 | -6/Factory | Fabricated M-13 Machinist (x1) 11735 | -6/Factory | Discovered new exit (range 12) 11736 | -6/Factory | Assembled infested ambush trap array 11780 | -6/Factory | Identified exit to Extension 11782 | -6/Factory | Entered Extension 11791 | -6/Extension | Disrupted transfer network 11799 | -6/Extension | Lost 3 allies 11807 | -6/Extension | Lost 6 parts (3n1u2w) 11872 | -6/Extension | Rescued a captive Derelict 11953 | -6/Extension | Rescued a captive Derelict 11954 | -6/Extension | Rescued a captive Derelict 12006 | -6/Extension | Rescued a captive Derelict 12062 | -6/Extension | Build established: Scavenger-Mutant 12111 | -6/Extension | Lost 4 allies 12139 | -6/Extension | Rescued A7 12226 | -6/Extension | System corruption reached 10% 12468 | -6/Extension | Crushed by falling debris 12474 | -6/Extension | Crushed by falling debris 12477 | -6/Extension | Crushed by falling debris 12508 | -6/Extension | Lost 7 parts (1p5n1w) 12620 | -6/Extension | Zion Heavy squad teleported in 12665 | -6/Extension | Zion Fire squad teleported in 12741 | -6/Extension | Retrieved Zion intel report: Unaware Analyses 12780 | -6/Extension | Retrieved Zion intel report: Prototype Stockpiles 13095 | -6/Extension | Discovered new exit (range 10) 13097 | -6/Extension | Discovered new exit (range 6) 13107 | -6/Extension | Identified exit to Cetus 13150 | -6/Extension | Entered Cetus 13150 | -6/Cetus | Accompanied by 18 allies (A7) 13155 | -6/Cetus | Acquired a Cetus Manufacturing Module code from A7 13173 | -6/Cetus | Build established: Commander-Mutant 13177 | -6/Cetus | Spotted Cetus Guard 13178 | -6/Cetus | Spotted Cetus Guard 13180 | -6/Cetus | Spotted Cetus Guard 13180 | -6/Cetus | Spotted Cetus Guard 13190 | -6/Cetus | Core integrity fell below 50% 13193 | -6/Cetus | Allies destroyed Cetus Guard 13196 | -6/Cetus | Allies destroyed Cetus Guard 13197 | -6/Cetus | Allies destroyed Cetus Guard 13199 | -6/Cetus | Allies destroyed Cetus Guard 13222 | -6/Cetus | Lost 3 allies 13401 | -6/Cetus | Started Cetus Manufacturing Module 13426 | -6/Cetus | Manufactured an Enhanced Grunt 13442 | -6/Cetus | Escorted A7 to Cetus Mainframe 13451 | -6/Cetus | Manufactured an Enhanced Grunt 13476 | -6/Cetus | Manufactured an Enhanced Grunt 13501 | -6/Cetus | Manufactured an Enhanced Grunt 13526 | -6/Cetus | Manufactured an Enhanced Grunt 13599 | -6/Cetus | Discovered new exit (range 15) 13638 | -6/Cetus | Spotted Cetus Guard 13638 | -6/Cetus | Spotted Cetus Guard 13643 | -6/Cetus | Spotted Cetus Guard 13648 | -6/Cetus | Allies destroyed Cetus Guard 13649 | -6/Cetus | Destroyed Cetus Guard 13652 | -6/Cetus | Spotted Cetus Guard 13653 | -6/Cetus | Destroyed Cetus Guard 13653 | -6/Cetus | Allies destroyed Cetus Guard 13666 | -6/Cetus | Discovered new exit (range 16) 13677 | -6/Cetus | Scared off Revision 17 13690 | -6/Cetus | System corruption reached 30% 13720 | -6/Cetus | Identified exit to Factory 13801 | -6/Cetus | Identified exit to Archives 13900 | -6/Cetus | Security sweep announced 13974 | -6/Cetus | Lost 5 allies 13979 | -6/Cetus | Entered Archives 13979 | -6/Archives | Accompanied by 13 allies (A7) 13984 | -6/Archives | Received a hacking code to weaken MAIN.C 14036 | -6/Archives | Lost 5 allies 14042 | -6/Archives | Discovered new exit (range 16) 14069 | -6/Archives | Identified exit to Hub_04(d) 14089 | -6/Archives | Entered Hub_04(d) 14089 | -6/Hub_04(d) | Accompanied by 7 allies 14089 | -6/Hub_04(d) | Discovered exit to Factory (range 16) 14136 | -6/Hub_04(d) | Retrieved Zion intel report: Depthwide Sectors/-5 14137 | -6/Hub_04(d) | Zion Light squad teleported in 14294 | -6/Hub_04(d) | Retrieved Zion intel report: Emergency Access 14295 | -6/Hub_04(d) | Zion Light squad teleported in 14304 | -6/Hub_04(d) | Build established: Scavenger-Mutant 14359 | -6/Hub_04(d) | Network Hub disabled 14385 | -6/Hub_04(d) | Murdered 5 allies 14396 | -6/Hub_04(d) | Spotted Lightning 14400 | -6/Hub_04(d) | Spotted Lightning 14401 | -6/Hub_04(d) | Spotted Lightning 14416 | -6/Hub_04(d) | Allies destroyed Lightning 14439 | -6/Hub_04(d) | First assault squad dispatched 14442 | -6/Hub_04(d) | Destroyed Lightning 14457 | -6/Hub_04(d) | Destroyed Lightning 14465 | -6/Hub_04(d) | Lost 7 allies 14636 | -6/Hub_04(d) | Entered Factory 14636 | -5/Factory | Evolved 2 slots: Propulsion x1, Utility x1 14814 | -5/Factory | Spotted B-75 Beast 14894 | -5/Factory | Destroyed B-75 Beast 15009 | -5/Factory | Enhanced Grunt warped into view, answering call for help 15014 | -5/Factory | Enhanced Grunt warped into view, answering call for help 15046 | -5/Factory | Zion Heavy squad teleported in 15087 | -5/Factory | Retrieved Zion intel report: Guard Positions 15088 | -5/Factory | Zion Infowar Resupply teleported in 15190 | -5/Factory | Zion Light squad teleported in 15346 | -5/Factory | Crushed by falling debris 15369 | -5/Factory | Identified exit to Upper Caves 15389 | -5/Factory | Garrison activated, responded to threat 15439 | -5/Factory | Zion Demo squad teleported in 15443 | -5/Factory | Lost 5 allies 15508 | -5/Factory | Entered Upper Caves 15508 | -5/Upper Caves | Accompanied by 3 allies 15675 | -5/Upper Caves | Encountered a Warlord checkpoint 16387 | -5/Upper Caves | Discovered new exit (range 6) 16413 | -5/Upper Caves | Identified exit to Upper Caves 16416 | -5/Upper Caves | Entered another Upper Caves area 16416 | -5/Upper Caves | Accompanied by 3 allies 16417 | -5/Upper Caves | Identified exit to Warlord 16427 | -5/Upper Caves | Attracted the attention of an 0b10 checkpoint 16469 | -5/Upper Caves | Lost 3 allies 16502 | -5/Upper Caves | Destroyed 9 combat bots 16688 | -5/Upper Caves | Discovered new exit (range 6) 16696 | -5/Upper Caves | Identified exit to Factory 16697 | -5/Upper Caves | Entered Factory 16697 | -4/Factory | Evolved 2 slots: Utility x2 16800 | -4/Factory | Garrison activated, responded to threat 16833 | -4/Factory | Lost 3 parts (1n2w) 17154 | -4/Factory | Discovered new exit (range 9) 17169 | -4/Factory | Identified exit to Upper Caves 17208 | -4/Factory | Zion Recon squad teleported in 17383 | -4/Factory | System corruption reached 10% 17515 | -4/Factory | Lost 3 parts (1p2n) 17626 | -4/Factory | Garrison activated, responded to threat 17693 | -4/Factory | Lost 4 parts (3u1w) 17810 | -4/Factory | Discovered new exit (range 9) 17850 | -4/Factory | Identified exit to Armory 17889 | -4/Factory | Entered Armory 18152 | -4/Armory | Zion Demo squad teleported in 18191 | -4/Armory | Lost 3 parts (1n1u1w) 18315 | -4/Armory | Energy Cycler disabled 18479 | -4/Armory | Core integrity fell below 50% 18490 | -4/Armory | Released all parts (5) 18510 | -4/Armory | Core integrity fell below 20% 18514 | -4/Armory | Discovered new exit (range 4) 18515 | -4/Armory | Entered Research 18515 | -3/Research | Evolved 2 slots: Utility x2 18516 | -3/Research | Identified exit to Testing 18520 | -3/Research | Lost 9 parts (1p2n4u2w) 18721 | -3/Research | Zion Light squad teleported in 19048 | -3/Research | System corruption reached 10% 19053 | -3/Research | P-80 Master assimilated allied YO-G4U(z) 19105 | -3/Research | Found Prototype Protection 19105 | -3/Research | Identified Zio. Weapon Casing 19111 | -3/Research | Lost 3 parts (2u1w) 19284 | -3/Research | Build established: Messiah-Mutant 19300 | -3/Research | Garrison activated, responded to threat 19363 | -3/Research | Lost 4 parts (2p1n1u) 19373 | -3/Research | System corruption reached 30% 19429 | -3/Research | Identified exit to Garrison 19451 | -3/Research | Entered Garrison 19545 | -3/Garrison | Triggered checkpoint 19618 | -3/Garrison | Lost 4 parts (2n2u) 19709 | -3/Garrison | Lost 7 parts (1p2n3u1w) 19714 | -3/Garrison | Build established: Scavenger-Mutant 19778 | -3/Garrison | Assembled breached garrison interior 20048 | -3/Garrison | Lost 10 parts (1p5n2u2w) 20111 | -3/Garrison | Core integrity fell below 50% 20177 | -3/Garrison | Discovered new exit (range 12) 20182 | -3/Garrison | Entered Research 20213 | -3/Research | Zion Hacking Resupply teleported in 20213 | -3/Research | Lost 14 parts (1p6n5u2w) 20233 | -3/Research | Found Prototype Hackware 20233 | -3/Research | Identified Exp. Hacking Suite 20335 | -3/Research | Core integrity fell below 20% 20357 | -3/Research | Zion Heavy squad teleported in 20400 | -3/Research | Lost 7 parts (1p2n2u2w) 20443 | -3/Research | Spotted B-86 Titan 20452 | -3/Research | Destroyed B-86 Titan 20461 | -3/Research | Found Hvy. Reflective Plating 20600 | -3/Research | Destroyed by S-43 Plague with Heavy Machine Gun Last Messages --------------- 20555_ U-05 Engineer lays Concrete. 20559_ U-05 Engineer builds a Wall. 20564_ System corrupted: Component data lost. 20569_ Acquired Prototype Storage. 20569_ Identified Exp. Energy Well. 20571_ Dropped Exp. Energy Well. 20572_ Extracted 6 energy. 20579_ System corrupted: Myomer Leg rejected. 20582_ U-05 Engineer builds a Door. 20584_ Acquired Myomer Leg. 20587_ U-05 Engineer builds a Wall. 20592_ S-43 Plague destroyed. 20593_ ALERT: Cargo convoy en route, clear transfer corridor. 20593_ U-05 Engineer builds a Door. 20594_ System corrupted: Force Lance fused. 20595_ Hvy. Reflective Plating destroyed. 20595_ Acquired 37 matter. 20597_ Force Lance follow-up attack on S-43 Plague. Map ----- +----------------------------------------------------+ | ?????????????????????????????????????????????????? | | ?????????????????????????????????????????????????? | | ????????????????????????????? ???????????????????? | | ????????????????????????????????????????? #?????? | | ??????????????????????????????????#?????? #???? | | ????????????????????????? ??????????????# #???? | | ????????????????????????????????????????# #???? | | ????????????????????????????????????????# #???? | | ?????????????????????????????????????? ?# ##### | | ????????????????????????????????????????+ | | ????????????????????????"??????? ?#?????# | | ??????????????????????????? ???? ???????# | | ???????????????????????????????? ??#????# | | ??????????????????????? ???????? ???????# """ | | ??????????????????????????? ???# ?#?????# """ | | ???????????????????????? ? ???? ######## """ | | ????????????????????????#??????# # # | | ???????????????????????????????# # # | | ???????????????????????????????# # * + | | ????????????? ?????????##??????# # # | | ???????????????????????######### ######## | | ????????????????????????# !# ! % % | | ?????????????????#??????# # % ####"### | | ????????????????????????# #!^ ## | | ???????????????????#????#[* +[[ u ## | | ???????????????????# ? #@! #%*% ##### | | ???????????????????# ?#=s s # u ###?# | | ??????????????????## ##/##+## [ ###?# ! | | ???????????????????# u[^ % #?# | | ???????????????????# u[! ! #?#+"#### | | ???????????????????# ! ##### ###?? | | ???????????????????# #?# #?? | | ???????????????????# ### #?? | | ????????????????? #?? | | ????????????????? #####+#### "### #?? | | ?????????????????? ??# # ### #?? | | ?????????????????? ??# C #####+###?? | | ?????????????????? ### ## ##????????# | | ???????????????????? ??# ## ###???????? | | ????????????????????? ? ?+ ## ##? ??????? | | ?????????????????????????????# # #????? ??? | | ?????????????????????????????######## ##? ?? ??? | | ???????????????????????? ??????????#" "#???????? | | ??????????????????????#????? ??????### ###???????? | | ????????????????????????? ???????????# #?????#???? | | ??????????????????????????? ???????#?# ???? ???? | | ?????????????????????????????????????####????????? | | ?????????????????????????????????#???????????????? | | ????????????????????????????????????????? ?????? ? | | ????????????????????????????#??????????#??#??????? | +----------------------------------------------------+ Best States ------------- Heat Dissipation 103 Coolant Potential 80 Energy Generation 27 Energy Capacity 780 Matter Stores 300 Matter Capacity 300 Sight Range 16 Robot Scan Range 16 Terrain Scan Range 16 Terrain Scan Density 135 Power Amplification 30 Additional Mass Support 6 Armor Coverage 1650 Resistance: TH 25 Core Shielding 20 Weapon Shielding 100 Weapon Cycling 20 Phase Shifting 10 Evasion (%) 65 Targeting Accuracy 8 Melee Accuracy 8 Launcher Accuracy 40 Target Analysis 12 Recoil Reduction 8 Kinecelleration 40 Offensive Hacking 20 Defensive Hacking 10 Item Schematics ----------------- Cargo Storage Unit | -10/Materials | Hacked Adv. Assault Cannon | -7/Zion | Archive IFF Parser | -7/Zion | Archive Hvy. Laser | -7/Zion | Archive Magnetic Acceleration Cannon | -7/Zion | Archive Gravmag System | -7/Zion | Archive System Guard | -7/Zion | Archive Imp. Trap Extractor | -7/Zion | Archive Imp. Transmission Jammer | -7/Zion | Archive Remote Force Field | -7/Zion | Archive Transmission Jammer | -7/Zion | Archive Imp. Trap Scanner | -7/Zion | Archive Imp. Melee Analysis Suite | -7/Zion | Archive Imp. Target Analyzer | -7/Zion | Archive Thermal Shield | -7/Zion | Archive Battle Cannon | -7/Zion | Free Flamer | -7/Zion | Free Beamcaster | -7/Zion | Free Hvy. Riot Gun | -7/Zion | Free Robot Schematics ------------------ M-13 Machinist | -10/Materials | Hacked G-47 Trooper | -7/Zion | Archive L-41 Fighter | -7/Zion | Archive Fabricated ------------ Cargo Storage Unit | x1 | -7/Factory M-13 Machinist | x1 | -6/Factory Repaired ---------- Nothing Studied --------- None Alien Tech Used ----------------- None Achievements -------------- Can't Catch Me Cya! Tank Life Challenges ------------ None Game ------ Seed ResetElectronBiocell Manual? 0 Play Time 03:07:27 Cumulative 116.2 hours Start 2026.02.25 @ 01:39:52 End 2026.02.25 @ 05:53:47 Sessions 3 Manual Loads 0 Difficulty Rogue Special Mode None Game No. 169 Rogue 169 Adventurer 0 Explorer 0 Win Type - Total 0 Types 0/0/0/0/0/0/0/0/0/0 Lore% 33 Gallery% 45 Achievement% 36 Wizard Run 0 Options --------- Layout 1 ASCII 0 Keyboard 0 Movement Mouse Keybinds 0 Fullscreen 2 Font 24/Smallcaps Map View 50x35 Zoom Use 11% Tactical HUD 1 Map Filters NONE Filters NONE Steam 1 RUN: 88ca7566-2082-4998-95b3-583e31245794